bitfinex-derivatives/quotes_SOLF0:USTF0_20250928
["timestamp","ask_amount","ask_price","bid_price","bid_amount"]
[1759085342515,7.51,206.11,206.01,7.25]
[1759085342925,7.51,206.09,206.01,7.25]
[1759085343719,4.3657,206.08,206.01,7.25]
[1759085345423,5.31185157,206.19,206.05,2.63297535]
[1759085345424,7.51,206.18,206.05,2.63297535]
[1759085345628,7.51,206.16,206.06,7.25]
[1759085345830,120.28,206.15,206.06,7.25]
[1759085346527,7.51,206.14,206.06,7.25]
[1759085347726,4.3647,206.13,206.06,7.25]
[1759085348224,7.51,206.12,206.06,7.25]
[1759085348626,7.51,206.12,206.05,2.63297535]
[1759085348830,127.75,206.12,206.05,2.63297535]
[1759085349019,120.24,206.11,206.05,2.63297535]
[1759085349223,7.51,206.09,206.05,2.63297535]
[1759085349419,4.3654,206.1,206.05,2.63297535]
[1759085349623,120.22,206.11,206.05,2.63297535]
[1759085350024,7.51,206.08,206.05,2.63297535]
[1759085350625,7.51,206.16,206.06,7.25]
[1759085350827,7.51,206.13,206.05,9.88297535]
[1759085351033,113.96,206.12,206.05,9.88297535]
[1759085351933,11.8747,206.13,206.05,9.88297535]
[1759085352134,7.42,206.19,206.09,7.77]
[1759085352433,7.42,206.17,206.11,1.68667545]
[1759085353322,7.42,206.17,206.1,1.68667545]
[1759085353934,7.42,206.15,206.1,1.68667545]
[1759085354128,120.28,206.15,206.1,1.68667545]
[1759085354329,7.42,206.14,206.1,1.68667545]
[1759085354523,120.28,206.15,206.1,1.68667545]
[1759085354735,7.42,206.13,206.1,1.68667545]
[1759085358830,4.3648,206.13,206.1,1.68667545]
[1759085359332,4.365,206.11,206.1,1.68667545]
[1759085359538,11.785,206.11,206.1,1.68667545]
[1759085359740,11.785,206.11,206.06,7.77]
[1759085359741,4.365,206.11,206.07,1.68667545]
[1759085359929,7.42,206.1,206.07,1.68667545]
[1759085360232,4.365,206.11,206.07,1.68667545]
[1759085360432,7.42,206.1,206.07,1.68667545]
[1759085360833,4.365,206.11,206.07,1.68667545]
[1759085361037,7.42,206.09,206.07,1.68667545]
[1759085361241,7.42,206.09,206.03,7.77]
[1759085361433,7.42,206.08,206.04,1.68667545]
[1759085361633,107.04,206.09,206.04,1.68667545]
[1759085362732,7.42,206.08,206.04,1.68667545]
[1759085362937,111.4056,206.09,206.04,1.68667545]
[1759085363133,7.42,206.08,206.04,1.68667545]
[1759085363638,7.74,206.07,206.04,1.68667545]
[1759085364335,124.4858,206.08,206.04,1.68667545]
[1759085364529,7.74,206.07,206.04,1.68667545]
[1759085365040,124.4658,206.08,206.04,1.68667545]
[1759085365438,7.74,206.07,206.04,1.68667545]
[1759085365834,124.4458,206.08,206.04,1.68667545]
[1759085366037,4.3661,206.06,206.04,1.68667545]
[1759085366241,12.1061,206.06,206.04,1.68667545]
[1759085366443,67.8911,206.14,206.04,1.68667545]
[1759085366444,7.74,206.15,206.04,9.22667545]
[1759085366641,7.74,206.15,206.09,1.68667545]
[1759085366940,7.74,206.19,206.12,1.68667545]
[1759085367130,7.74,206.19,206.15,1.68667545]
[1759085367331,120.32,206.18,206.15,1.68667545]
[1759085367535,353.06,206.2,206.15,1.68667545]
[1759085367735,120.32,206.19,206.15,1.68667545]
[1759085368135,7.74,206.18,206.15,1.68667545]
[1759085368531,7.74,206.17,206.15,1.68667545]
[1759085369136,7.74,206.17,206.11,7.54]
[1759085369337,7.74,206.17,206.15,1.68667545]
[1759085369740,128.02,206.17,206.15,1.68667545]
[1759085372544,120.28,206.17,206.14,1.68667545]
[1759085372743,7.74,206.16,206.14,1.68667545]
[1759085374739,128.02,206.17,206.11,1.68667545]
[1759085375145,120.1,206.16,206.09,1.68667545]
[1759085375347,7.74,206.15,206.09,1.68667545]
[1759085375640,120.12,206.14,206.09,1.68667545]
[1759085375853,7.74,206.13,206.09,1.68667545]
[1759085376541,358.37185157,206.2,206.11,1.68667545]
[1759085376846,7.74,206.19,206.16,1.68667545]
[1759085377046,7.74,206.17,206.16,1.68667545]
[1759085377548,127.86,206.17,206.16,1.68667545]
[1759085378048,7.74,206.17,206.14,1.68667545]
[1759085378248,127.86,206.16,206.14,1.68667545]
[1759085378442,120.12,206.16,206.14,1.68667545]
[1759085379839,353.06,206.2,206.14,1.68667545]
[1759085380039,7.74,206.18,206.14,1.68667545]
[1759085380246,120.06,206.19,206.14,1.68667545]
[1759085380445,7.74,206.18,206.14,1.68667545]
[1759085380747,120.06,206.19,206.14,1.68667545]
[1759085380748,124.4235,206.19,206.14,1.68667545]
[1759085381148,7.74,206.18,206.14,1.68667545]
[1759085381752,124.4235,206.19,206.14,1.68667545]
[1759085382349,7.74,206.18,206.14,1.68667545]
[1759085382852,124.4235,206.19,206.14,1.68667545]
[1759085383246,7.74,206.18,206.14,1.68667545]
[1759085383442,124.4235,206.19,206.14,1.68667545]
[1759085384256,7.74,206.18,206.14,1.68667545]
[1759085384443,124.4235,206.19,206.14,1.68667545]
[1759085384646,7.74,206.18,206.14,1.68667545]
[1759085384842,124.4235,206.19,206.14,1.68667545]
[1759085385053,7.74,206.18,206.14,1.68667545]
[1759085385257,124.4235,206.19,206.14,1.68667545]
[1759085385449,7.74,206.18,206.14,1.68667545]
[1759085386550,124.4235,206.19,206.14,1.68667545]
[1759085386854,7.74,206.18,206.14,1.68667545]
[1759085387054,124.4235,206.19,206.14,1.68667545]
[1759085387563,7.74,206.18,206.14,1.68667545]
[1759085388257,124.4235,206.19,206.14,1.68667545]
[1759085388658,7.74,206.18,206.14,1.68667545]
[1759085388956,124.4235,206.19,206.14,1.68667545]
[1759085389259,7.74,206.18,206.14,9.22667545]
[1759085389558,119.78,206.17,206.15,7.54]
[1759085390557,127.52,206.17,206.14,1.68667545]
[1759085392560,127.44,206.17,206.14,1.68667545]
[1759085392760,7.74,206.17,206.14,1.68667545]
[1759085392954,127.44,206.17,206.14,1.68667545]
[1759085393861,119.7,206.17,206.14,1.68667545]
[1759085394159,7.33,206.16,206.14,1.68667545]
[1759085399571,7.33,206.15,206.14,1.68667545]
[1759085400166,7.33,206.15,206.12,9.22667545]
[1759085400361,119.5,206.16,206.12,9.22667545]
[1759085400566,7.33,206.15,206.12,9.22667545]
[1759085400967,7.33,206.15,205.97,67.9443]
[1759085401168,7.33,206.13,206.0,8.56881725]
[1759085401367,7.33,206.13,206.03,1.68667545]
[1759085401768,7.33,206.11,206.03,1.68667545]
[1759085401975,7.33,206.09,206.03,1.68667545]
[1759085402576,7.33,206.09,206.03,6.05317545]
[1759085406077,7.33,206.09,206.05,1.68667545]
[1759085406277,119.54,206.1,206.05,1.68667545]
[1759085406778,7.33,206.1,206.05,1.68667545]
[1759085406975,72.68,206.1,206.03,4.3665]
[1759085407274,89.26,206.1,206.04,1.68667545]
[1759085407480,7.33,206.1,206.04,1.68667545]
[1759085407670,131.1354,206.1,206.04,1.68667545]
[1759085407869,131.1354,206.1,206.02,1.68667545]
[1759085407870,7.33,206.1,206.02,1.68667545]
[1759085408072,7.33,206.08,206.02,1.68667545]
[1759085408473,99.06,206.07,206.02,1.68667545]
[1759085408879,7.33,206.06,206.02,1.68667545]
[1759085409081,7.33,206.06,206.0,2.2654927]
[1759085411574,7.33,206.06,206.0,1.68667545]
[1759085412377,7.33,206.06,205.99,4.3675]
[1759085412979,7.33,206.06,205.98,7.99]
[1759085413578,126.73,206.06,205.98,7.99]
[1759085413782,7.33,206.06,205.98,7.99]
[1759085414580,94.79,206.06,205.98,7.99]
[1759085418288,7.33,206.06,205.98,7.99]
[1759085418982,11.6962,206.06,205.98,7.99]
[1759085420775,11.6962,206.06,205.98,12.3576]
[1759085420987,8.01,206.05,205.98,12.3576]
[1759085421287,4.3662,206.06,205.98,12.3576]
[1759085421488,8.01,206.05,205.98,12.3576]
[1759085422977,67.9044,206.1,205.95,14.89425841]
[1759085422978,8.01,206.08,206.0,7.7]
[1759085424691,127.27,206.08,206.0,7.7]
[1759085424893,7.92,206.05,205.97,11.8679]
[1759085425093,7.92,206.05,205.97,7.5]
[1759085426090,7.92,206.05,205.99,4.3674]
[1759085427389,7.92,206.05,205.97,7.5]
[1759085428196,12.2864,206.05,205.97,7.5]
[1759085429390,12.2864,206.05,205.97,11.8678]
[1759085429592,7.92,206.04,205.97,11.8678]
[1759085429987,4.3664,206.05,205.97,11.8678]
[1759085430391,7.92,206.04,205.97,11.8678]
[1759085430895,12.2866,206.04,205.95,18.96137882]
[1759085431091,12.2866,206.04,205.9,67.968]
[1759085431092,7.92,205.98,205.85,7.5]
[1759085431286,2.63849022,205.99,205.85,14.64364225]
[1759085431491,7.92,205.98,205.86,7.5]
[1759085431896,7.92,205.96,205.87,4.3699]
[1759085432397,7.92,205.96,205.86,7.5]
[1759085432995,7.92,205.96,205.89,4.3695]
[1759085434693,7.92,205.96,205.9,7.5]
[1759085434888,15.7,206.02,205.9,7.5]
[1759085435095,7.92,206.01,205.9,7.5]
[1759085435389,119.58,206.0,205.89,4.3696]
[1759085435696,7.92,205.99,205.89,4.3696]
[1759085435893,7.92,205.97,205.86,7.5]
[1759085436400,127.52,205.97,205.86,7.5]
[1759085436587,131.8881,205.97,205.87,4.37]
[1759085437194,12.2881,205.97,205.87,4.37]
[1759085437391,131.8681,205.97,205.87,4.37]
[1759085437587,131.8681,205.97,205.88,4.3697]
[1759085438098,12.2881,205.97,205.88,4.3697]
[1759085438298,131.8681,205.97,205.88,4.3697]
[1759085438498,127.48,205.97,205.88,7.5]
[1759085438698,7.92,205.97,205.88,7.5]
[1759085439100,7.92,205.97,205.9,4.3693]
[1759085439897,35.48639022,205.98,205.88,7.5]
[1759085439898,35.48639022,205.98,205.88,11.8698]
[1759085440196,12.2881,205.97,205.88,7.5]
[1759085446701,7.92,205.94,205.86,7.5]
[1759085448613,7.92,205.92,205.86,7.5]
[1759085460029,4.3682,205.96,205.87,4.3699]
[1759085460223,7.24,205.95,205.88,7.8]
[1759085460730,4.3688,205.94,205.88,7.8]
[1759085461028,7.24,205.93,205.88,7.8]
[1759085461520,4.3688,205.94,205.88,7.8]
[1759085461926,7.24,205.93,205.88,7.8]
[1759085462129,4.3688,205.94,205.88,7.8]
[1759085462529,7.24,205.93,205.88,7.8]
[1759085462731,7.24,205.93,205.86,7.8]
[1759085464926,7.24,205.93,205.89,7.8]
[1759085465133,7.24,205.97,205.85,7.8]
[1759085466621,11.6081,205.97,205.89,7.8]
[1759085466825,7.24,205.97,205.89,7.8]
[1759085467532,4.3683,205.96,205.89,7.8]
[1759085469328,7.24,205.97,205.91,7.8]
[1759085469529,7.24,206.02,205.91,7.8]
[1759085470626,7.24,206.02,205.93,7.8]
[1759085471229,67.9337,206.01,205.89,7.96]
[1759085471430,7.45,205.98,205.89,7.96]
[1759085472134,110.67,205.98,205.89,7.96]
[1759085472435,7.45,205.95,205.89,7.96]
[1759085483740,7.64,205.93,205.84,7.65]
[1759085484541,12.009,205.93,205.84,7.65]
[1759085484740,7.64,205.91,205.84,7.65]
[1759085489042,9.33039212,205.91,205.84,7.65]
[1759085489350,7.64,205.89,205.81,7.65]
[1759085489648,13.70009212,205.89,205.81,7.65]
[1759085492151,9.33039212,205.89,205.81,7.65]
[1759085493742,7.64,205.87,205.81,7.65]
[1759085493946,9.33039212,205.87,205.81,7.65]
[1759085501946,7.64,205.87,205.81,7.65]
[1759085502549,1.69039212,205.93,205.84,1.69039212]
[1759085502749,3.43195002,205.92,205.85,7.65]
[1759085502955,7.64,205.93,205.86,1.69039212]
[1759085503152,3.43156102,205.92,205.87,4.3699]
[1759085503452,7.64,205.93,205.88,7.65]
[1759085503653,1.69039212,205.95,205.87,4.3699]
[1759085503854,11.07093242,205.94,205.88,7.65]
[1759085504156,7.64,205.94,205.88,7.65]
[1759085504352,7.64,205.94,205.88,9.34039212]
[1759085504552,12.0086,205.94,205.88,9.34039212]
[1759085504851,7.64,205.92,205.89,7.65]
[1759085506252,7.64,205.93,205.86,9.34039212]
[1759085506454,3.43163323,205.92,205.86,9.34039212]
[1759085506651,7.64,205.9,205.82,7.65]
[1759085506851,7.64,205.9,205.82,9.34039212]
[1759085507051,12.0096,205.9,205.82,9.34039212]
[1759085508353,4.3699,205.88,205.82,7.65]
[1759085511046,7.64,205.9,205.82,7.65]
[1759085511249,7.64,205.9,205.84,7.65]
[1759085521468,11.21524144,205.89,205.83,9.13039212]
[1759085521768,7.78,205.89,205.83,9.13039212]
[1759085526170,7.78,205.89,205.83,13.50119212]
[1759085529069,4.3694,205.91,205.85,7.44]
[1759085529275,4.6665942,205.9,205.85,7.44]
[1759085529573,3.45261943,205.89,205.84,4.3706]
[1759085529773,4.3694,205.91,205.85,7.44]
[1759085529974,4.66685517,205.9,205.85,7.44]
[1759085530169,3.45288063,205.89,205.85,4.3703]
[1759085530372,6.05929212,205.93,205.85,4.3703]
[1759085530569,12.44707026,205.92,205.86,7.44]
[1759085530873,12.44707026,205.91,205.86,7.44]
[1759085531065,11.23309572,205.9,205.86,7.44]
[1759085531375,7.78,205.9,205.85,4.3703]
[1759085531770,7.78,205.9,205.86,7.44]
[1759085532176,7.78,205.9,205.85,4.3703]
[1759085532372,7.78,205.9,205.86,7.99]
[1759085533677,3.45357418,205.89,205.86,7.99]
[1759085533869,7.93,205.91,205.86,7.99]
[1759085534075,7.93,205.89,205.86,7.99]
[1759085534573,7.93,205.89,205.85,4.3703]
[1759085535576,7.93,205.89,205.86,7.99]
[1759085535781,7.93,205.89,205.85,4.3703]
[1759085536177,7.93,205.89,205.86,7.99]
[1759085536877,7.93,205.89,205.85,4.3703]
[1759085537077,7.93,205.89,205.86,7.99]
[1759085539583,12.2992,205.92,205.86,7.99]
[1759085539881,4.66748925,205.91,205.86,7.99]
[1759085540185,11.38352289,205.9,205.86,7.99]
[1759085540383,7.93,205.9,205.86,7.99]
[1759085540781,7.93,205.9,205.85,4.3703]
[1759085541384,7.93,205.9,205.86,7.99]
[1759085541586,7.93,205.9,205.85,4.3703]
[1759085541784,7.93,205.9,205.86,7.99]
[1759085542392,4.3692,205.92,205.85,4.3703]
[1759085542690,4.66701925,205.91,205.85,4.3703]
[1759085542989,7.93,205.89,205.86,7.99]
[1759085543289,7.93,205.91,205.86,7.99]
[1759085543591,3.45337526,205.9,205.85,4.3703]
[1759085543889,4.3693,205.91,205.85,4.3703]
[1759085544084,3.45337526,205.9,205.85,11.8303]
[1759085544282,4.3693,205.91,205.85,11.8303]
[1759085544588,7.26,205.89,205.86,7.46]
[1759085544788,7.26,205.9,205.86,7.46]
[1759085545085,4.3693,205.91,205.86,7.46]
[1759085545283,7.26,205.89,205.86,7.46]
[1759085556496,7.26,205.9,205.86,7.46]
[1759085556695,10.70968227,205.89,205.86,7.46]
[1759085556898,7.26,205.89,205.86,7.46]
[1759085558291,7.26,205.89,205.84,4.3706]
[1759085558493,7.26,205.89,205.85,4.3704]
[1759085558800,7.26,205.89,205.86,7.46]
[1759085559695,4.3693,205.91,205.86,7.46]
[1759085559899,7.26,205.89,205.86,7.46]
[1759085560700,7.26,205.9,205.86,7.46]
[1759085560901,10.70998621,205.89,205.86,7.46]
[1759085561097,7.26,205.89,205.86,7.46]
[1759085561996,7.26,205.9,205.86,7.46]
[1759085562199,10.7100588,205.89,205.86,7.46]
[1759085562402,7.26,205.9,205.86,7.46]
[1759085562606,7.26,205.88,205.86,7.46]
[1759085569402,7.26,205.92,205.82,11.831]
[1759085569605,4.66559911,205.91,205.82,11.831]
[1759085569809,4.66559911,205.9,205.82,11.831]
[1759085570108,7.26,205.88,205.82,11.831]
[1759085570408,7.26,205.86,205.83,7.46]
[1759085570611,1.21402184,205.85,205.83,7.46]
[1759085570802,7.26,205.86,205.83,7.46]
[1759085571002,1.21402237,205.85,205.83,7.46]
[1759085571305,7.26,205.86,205.83,7.46]
[1759085571505,1.21402237,205.85,205.83,7.46]
[1759085571706,7.26,205.86,205.82,4.371]
[1759085571907,1.21402237,205.85,205.83,7.46]
[1759085572111,7.26,205.86,205.83,7.46]
[1759085572305,1.21402237,205.85,205.82,4.371]
[1759085572604,4.3698,205.89,205.83,7.46]
[1759085572805,4.66535653,205.88,205.81,7.46]
[1759085573006,4.66535653,205.87,205.81,7.46]
[1759085573308,1.21402237,205.86,205.81,7.46]
[1759085573608,7.26,205.9,205.84,4.3705]
[1759085573810,4.66522363,205.89,205.85,7.76]
[1759085574009,7.47,205.87,205.85,7.76]
[1759085574216,1.21401419,205.86,205.85,7.76]
[1759085577617,7.47,205.91,205.86,4.3701]
[1759085578220,7.47,205.91,205.87,7.76]
[1759085578523,7.47,205.91,205.86,4.3701]
[1759085578718,7.47,205.91,205.87,7.76]
[1759085579521,11.8389,205.93,205.87,7.76]
[1759085579720,7.47,205.91,205.87,7.76]
[1759085579914,10.91998707,205.9,205.87,7.76]
[1759085580112,7.47,205.9,205.87,7.76]
[1759085580723,7.47,205.9,205.86,4.3701]
[1759085580919,7.47,205.9,205.87,7.76]
[1759085582522,7.47,205.9,205.86,4.3701]
[1759085583215,7.47,205.9,205.87,7.76]
[1759085586826,11.8389,205.93,205.87,7.76]
[1759085587020,10.91840002,205.92,205.86,4.3701]
[1759085587215,10.91840002,205.91,205.86,4.3701]
[1759085587416,7.47,205.91,205.86,4.3701]
[1759085587618,4.3689,205.93,205.87,7.76]
[1759085587819,10.91826929,205.92,205.87,7.76]
[1759085588015,10.91826929,205.91,205.87,7.76]
[1759085588215,7.47,205.91,205.86,4.3701]
[1759085588419,7.47,205.92,205.87,7.76]
[1759085588619,7.47,205.92,205.86,4.3701]
[1759085588620,10.91812812,205.91,205.86,4.3701]
[1759085588820,4.3689,205.93,205.86,4.3701]
[1759085589123,3.44812812,205.92,205.86,4.3701]
[1759085589327,7.47,205.9,205.87,7.76]
[1759085589531,1.21383219,205.89,205.86,4.3701]
[1759085589828,7.47,205.9,205.87,7.76]
[1759085590027,1.21383219,205.89,205.86,4.3701]
[1759085590228,7.47,205.9,205.87,7.76]
[1759085590527,1.21383219,205.89,205.86,4.3701]
[1759085590722,7.47,205.9,205.86,4.3701]
[1759085590922,1.21383219,205.89,205.87,7.76]
[1759085591123,7.47,205.9,205.87,7.76]
[1759085591323,1.21383219,205.89,205.87,7.76]
[1759085591524,7.47,205.9,205.87,7.84]
[1759085591725,1.21383219,205.89,205.86,4.3701]
[1759085591925,7.47,205.9,205.86,4.3701]
[1759085592125,1.21383219,205.89,205.87,7.84]
[1759085592330,7.47,205.9,205.87,7.84]
[1759085592519,1.21383219,205.89,205.87,7.84]
[1759085592725,7.47,205.9,205.86,4.3701]
[1759085592930,1.21383219,205.89,205.87,7.84]
[1759085593130,7.47,205.9,205.87,7.84]
[1759085593428,1.21383219,205.89,205.87,7.84]
[1759085593628,7.47,205.9,205.87,7.84]
[1759085593822,1.21383219,205.89,205.87,7.84]
[1759085594021,7.47,205.9,205.87,7.84]
[1759085594221,1.21383219,205.89,205.86,4.3701]
[1759085594422,7.47,205.9,205.86,4.3701]
[1759085594621,1.21383219,205.89,205.87,7.84]
[1759085594818,7.47,205.9,205.87,7.84]
[1759085595022,1.21383219,205.89,205.87,7.84]
[1759085595224,7.47,205.9,205.87,7.84]
[1759085595522,1.21383219,205.89,205.87,7.84]
[1759085595726,7.47,205.9,205.87,7.84]
[1759085595926,1.21383219,205.89,205.86,4.3701]
[1759085596127,7.47,205.9,205.87,7.84]
[1759085596329,1.21383219,205.89,205.87,7.84]
[1759085596529,7.47,205.9,205.86,4.3701]
[1759085596730,1.21383219,205.89,205.86,4.3701]
[1759085596926,7.47,205.9,205.87,7.84]
[1759085597128,1.21383219,205.89,205.87,7.84]
[1759085597328,7.47,205.91,205.82,7.84]
[1759085597525,1.69068012,205.87,205.82,7.84]
[1759085597722,7.47,205.85,205.82,7.84]
[1759085601534,1.69068012,205.89,205.82,7.84]
[1759085601836,7.47,205.87,205.82,7.84]
[1759085602036,7.47,205.85,205.82,7.84]
[1759085602235,7.47,205.91,205.82,7.84]
[1759085602438,7.47,205.89,205.82,7.84]
[1759085602624,4.66047308,205.88,205.82,7.84]
[1759085602829,4.66047308,205.87,205.82,7.84]
[1759085603030,7.47,205.85,205.82,7.84]
[1759085603230,7.47,205.89,205.82,7.84]
[1759085603531,7.47,205.87,205.82,7.84]
[1759085603836,7.47,205.85,205.82,7.84]
[1759085604632,7.47,205.85,205.81,7.88]
[1759085604833,7.47,205.85,205.8,4.3714]
[1759085605035,7.47,205.85,205.81,7.88]
[1759085605230,7.47,205.85,205.8,4.3714]
[1759085605435,7.47,205.85,205.81,7.88]
[1759085605935,7.47,205.85,205.8,4.3714]
[1759085606238,7.47,205.85,205.81,7.88]
[1759085606937,7.47,205.85,205.8,4.3714]
[1759085607138,7.47,205.85,205.81,7.88]
[1759085607928,7.47,205.85,205.8,4.3714]
[1759085608131,7.47,205.85,205.81,7.88]
[1759085608627,7.47,205.85,205.8,4.3714]
[1759085609236,7.47,205.85,205.81,7.88]
[1759085609428,7.47,205.85,205.8,4.3714]
[1759085609631,7.47,205.85,205.81,7.88]
[1759085609832,7.47,205.85,205.8,4.3714]
[1759085610532,7.47,205.85,205.81,7.88]
[1759085611042,4.3702,205.87,205.81,7.88]
[1759085611239,1.21410977,205.86,205.81,7.88]
[1759085611438,1.21410977,205.85,205.81,7.88]
[1759085611636,7.47,205.86,205.81,7.88]
[1759085611840,7.47,205.84,205.81,7.88]
[1759085612038,4.3702,205.87,205.81,7.88]
[1759085612236,1.21414892,205.86,205.81,7.88]
[1759085612437,7.47,205.84,205.81,7.88]
[1759085613344,7.47,205.84,205.8,4.3714]
[1759085613543,7.47,205.84,205.81,7.88]
[1759085614035,1.69068012,205.86,205.81,7.88]
[1759085614238,7.47,205.84,205.81,7.88]
[1759085614540,7.47,205.85,205.81,7.88]
[1759085614936,6.06108012,205.86,205.81,7.88]
[1759085615137,1.21414892,205.85,205.81,7.88]
[1759085615337,6.06108012,205.86,205.81,7.88]
[1759085615545,1.21414892,205.85,205.81,7.88]
[1759085615742,7.47,205.83,205.81,7.88]
[1759085618241,7.47,205.83,205.78,8.46242029]
[1759085618538,6.06138012,205.84,205.78,0.58242029]
[1759085618750,6.06138012,205.84,205.78,8.46242029]
[1759085618945,7.47,205.83,205.78,0.58242029]
[1759085619146,7.47,205.83,205.79,7.88]
[1759085619347,6.06138012,205.84,205.79,7.88]
[1759085619543,7.47,205.83,205.79,7.88]
[1759085619744,6.06138012,205.84,205.79,7.88]
[1759085619943,7.47,205.83,205.79,7.88]
[1759085620347,6.06138012,205.84,205.79,7.88]
[1759085620749,7.47,205.83,205.79,7.88]
[1759085621246,6.06138012,205.84,205.79,7.88]
[1759085621453,7.47,205.83,205.79,7.88]
[1759085621656,6.06138012,205.84,205.79,7.88]
[1759085622248,9.16068012,205.82,205.76,4.3723]
[1759085624857,7.47,205.81,205.78,7.88]
[1759085625251,1.69068012,205.82,205.78,7.88]
[1759085625453,7.47,205.81,205.78,7.88]
[1759085625748,1.69068012,205.82,205.78,7.88]
[1759085625956,7.47,205.81,205.78,7.88]
[1759085626156,1.69068012,205.82,205.78,7.88]
[1759085626353,7.47,205.81,205.78,7.88]
[1759085626750,1.69068012,205.82,205.78,7.88]
[1759085626951,7.47,205.81,205.78,7.88]
[1759085627652,1.69068012,205.82,205.78,7.88]
[1759085628057,7.47,205.81,205.78,7.88]
[1759085632661,7.47,205.85,205.79,7.88]
[1759085632860,1.21430234,205.84,205.79,7.88]
[1759085633058,8.68430234,205.83,205.79,7.88]
[1759085633259,7.47,205.83,205.78,4.3718]
[1759085633458,1.69068012,205.85,205.79,7.55]
[1759085633764,1.21430234,205.84,205.79,7.55]
[1759085634061,7.4,205.82,205.79,7.55]
[1759085641771,7.4,205.83,205.79,7.55]
[1759085642071,7.4,205.81,205.79,7.55]
[1759085643777,1.21437799,205.8,205.79,7.55]
[1759085643967,1.21437799,205.8,205.76,4.3723]
[1759085644273,1.69068012,205.83,205.77,7.55]
[1759085644478,12.0571811,205.82,205.76,4.3723]
[1759085644674,12.0571811,205.81,205.77,7.55]
[1759085644968,1.21441712,205.8,205.77,7.55]
[1759085645172,1.69068012,205.83,205.76,4.3723]
[1759085645371,4.65689489,205.82,205.76,4.3723]
[1759085645575,7.4,205.8,205.77,7.55]
[1759085645771,1.21442531,205.79,205.77,7.55]
[1759085645978,7.4,205.8,205.77,7.55]
[1759085646185,8.61442531,205.79,205.77,7.55]
[1759085646381,7.4,205.79,205.77,7.55]
[1759085647280,7.4,205.82,205.77,7.55]
[1759085647481,4.65656593,205.81,205.77,7.55]
[1759085647782,7.4,205.79,205.77,7.55]
[1759085651784,6.06168012,205.83,205.76,4.3723]
[1759085651981,12.57594298,205.82,205.76,11.9223]
[1759085652178,7.92,205.8,205.77,7.55]
[1759085653985,9.13439429,205.79,205.77,7.55]
[1759085654186,7.92,205.79,205.77,7.55]
[1759085655282,7.92,205.79,205.74,7.55]
[1759085655583,7.92,205.79,205.77,7.55]
[1759085655781,7.92,205.79,205.76,4.3722]
[1759085655981,7.92,205.79,205.77,7.55]
[1759085656180,9.61068012,205.83,205.74,7.55]
[1759085656482,9.61068012,205.83,205.73,118.7]
[1759085656483,12.57660593,205.82,205.77,4.372]
[1759085656693,1.2143861,205.81,205.77,7.55]
[1759085656984,9.61068012,205.87,205.82,7.55]